[Event "Late-Titled-Tuesday-Blitz-October-10-2023"]
[Site "Chess.com"]
[Date "2023.10.10"]
[Round "10"]
[White "DonBroca"]
[Black "Schwindle"]
[Result "0-1"]
[WhiteElo "2232"]
[BlackElo "2402"]
[TimeControl "180+1"]
[EndTime "15:50:44 PDT"]
[Termination "Schwindle won by resignation"]

1. e4 {[%clk 0:03:00.9]} 1... e6 {[%clk 0:03:00.3]} 2. d4 {[%clk 0:02:59.6]}
2... d5 {[%clk 0:03:00.5]} 3. exd5 {[%clk 0:02:58]} 3... exd5 {[%clk 0:03:00.5]}
4. Bd3 {[%clk 0:02:58.7]} 4... Nf6 {[%clk 0:03:01.1]} 5. Nf3 {[%clk 0:02:59.2]}
5... Bg4 {[%clk 0:02:59.8]} 6. O-O {[%clk 0:02:59.3]} 6... Be7 {[%clk
0:03:00.4]} 7. Re1 {[%clk 0:02:58.5]} 7... O-O {[%clk 0:03:00.7]} 8. c3 {[%clk
0:02:58.7]} 8... c6 {[%clk 0:03:01]} 9. Nbd2 {[%clk 0:02:59.3]} 9... Nbd7 {[%clk
0:03:01.1]} 10. Qc2 {[%clk 0:02:59.9]} 10... h6 {[%clk 0:02:58.8]} 11. h3 {[%clk
0:02:59.4]} 11... Be6 {[%clk 0:02:57.6]} 12. Nf1 {[%clk 0:02:56.1]} 12... Rc8
{[%clk 0:02:54.7]} 13. Ng3 {[%clk 0:02:56.5]} 13... c5 {[%clk 0:02:54.7]} 14.
Nf5 {[%clk 0:02:52.7]} 14... cxd4 {[%clk 0:02:47.2]} 15. N3xd4 {[%clk
0:02:44.5]} 15... Bxf5 {[%clk 0:02:43.9]} 16. Bxf5 {[%clk 0:02:28.7]} 16... Bc5
{[%clk 0:02:41.7]} 17. Be3 {[%clk 0:02:26.9]} 17... a6 {[%clk 0:02:35.8]} 18.
Rad1 {[%clk 0:02:21.9]} 18... Rc7 {[%clk 0:02:27.5]} 19. Bf4 {[%clk 0:02:13.8]}
19... Rc8 {[%clk 0:02:26.1]} 20. Nf3 {[%clk 0:02:12.8]} 20... Re8 {[%clk
0:02:15.8]} 21. Ne5 {[%clk 0:01:59.1]} 21... Nxe5 {[%clk 0:02:08.3]} 22. Bxc8
{[%clk 0:01:53.9]} 22... Nf3+ {[%clk 0:02:07.7]} 23. gxf3 {[%clk 0:01:51.3]}
23... Qxc8 {[%clk 0:02:08.3]} 24. Rxe8+ {[%clk 0:01:50]} 24... Qxe8 {[%clk
0:02:09.1]} 25. Qd2 {[%clk 0:01:43.4]} 25... Qe6 {[%clk 0:02:05]} 26. Kg2 {[%clk
0:01:41.1]} 26... Nh5 {[%clk 0:01:55.3]} 27. Bg3 {[%clk 0:01:36.5]} 27... Qg6
{[%clk 0:01:34.9]} 28. Kh2 {[%clk 0:01:26.4]} 28... Bd6 {[%clk 0:01:19.9]} 29.
Rg1 {[%clk 0:01:21.8]} 29... Qe6 {[%clk 0:01:19.2]} 30. Re1 {[%clk 0:01:18.7]}
30... Qg6 {[%clk 0:01:16.7]} 31. f4 {[%clk 0:01:00.3]} 31... Qf5 {[%clk
0:01:06.5]} 32. Re8+ {[%clk 0:00:41.4]} 32... Kh7 {[%clk 0:01:05.8]} 33. Re3
{[%clk 0:00:42]} 33... Nxf4 {[%clk 0:01:03]} 34. Bxf4 {[%clk 0:00:17]} 34...
Bxf4+ {[%clk 0:01:03.1]} 35. Kg2 {[%clk 0:00:17.7]} 35... Bxe3 {[%clk
0:00:57.5]} 36. Qxe3 {[%clk 0:00:18.6]} 36... Qe4+ {[%clk 0:00:38.8]} 37. Qxe4+
{[%clk 0:00:14.2]} 37... dxe4 {[%clk 0:00:39.7]} 38. Kg3 {[%clk 0:00:14.4]}
38... g5 {[%clk 0:00:34.8]} 39. c4 {[%clk 0:00:12.5]} 39... Kg6 {[%clk
0:00:33.2]} 40. b4 {[%clk 0:00:10]} 40... f5 {[%clk 0:00:31.3]} 41. Kg2 {[%clk
0:00:08.3]} 41... Kf6 {[%clk 0:00:31.6]} 42. Kf1 {[%clk 0:00:08.8]} 42... Ke5
{[%clk 0:00:32.1]} 43. Ke2 {[%clk 0:00:08.7]} 43... Kd4 {[%clk 0:00:31.7]} 44.
c5 {[%clk 0:00:09.1]} 44... Kc4 {[%clk 0:00:30.6]} 45. a3 {[%clk 0:00:08]} 45...
f4 {[%clk 0:00:28.3]} 46. Kd2 {[%clk 0:00:07.2]} 46... h5 {[%clk 0:00:27.9]} 47.
Ke2 {[%clk 0:00:06.8]} 47... Kb3 {[%clk 0:00:23.9]} 48. b5 {[%clk 0:00:06.4]}
48... axb5 {[%clk 0:00:23.8]} 49. c6 {[%clk 0:00:07.1]} 49... bxc6 {[%clk
0:00:24]} 0-1

[Event "Late-Titled-Tuesday-Blitz-October-10-2023"]
[Site "Chess.com"]
[Date "2023.10.10"]
[Round "10"]
[White "McCarthyStone"]
[Black "Elbebiber"]
[Result "1-0"]
[WhiteElo "2422"]
[BlackElo "2144"]
[TimeControl "180+1"]
[EndTime "15:50:45 PDT"]
[Termination "McCarthyStone won by resignation"]

1. e4 {[%clk 0:02:59.7]} 1... d5 {[%clk 0:02:59.5]} 2. Nc3 {[%clk 0:02:56.1]}
2... Nf6 {[%clk 0:02:56]} 3. e5 {[%clk 0:02:53.7]} 3... d4 {[%clk 0:02:56.2]} 4.
exf6 {[%clk 0:02:53.9]} 4... dxc3 {[%clk 0:02:56.2]} 5. fxg7 {[%clk 0:02:54.8]}
5... cxd2+ {[%clk 0:02:56.3]} 6. Qxd2 {[%clk 0:02:55.7]} 6... Qxd2+ {[%clk
0:02:56.1]} 7. Bxd2 {[%clk 0:02:56.6]} 7... Bxg7 {[%clk 0:02:56.6]} 8. O-O-O
{[%clk 0:02:57.5]} 8... Nc6 {[%clk 0:02:50.2]} 9. Bb5 {[%clk 0:02:57.2]} 9...
Bd7 {[%clk 0:02:49.9]} 10. Nf3 {[%clk 0:02:57.3]} 10... Bf6 {[%clk 0:02:38.3]}
11. Bf4 {[%clk 0:02:52.9]} 11... O-O-O {[%clk 0:02:33.8]} 12. Rhe1 {[%clk
0:02:51.5]} 12... a6 {[%clk 0:02:28.2]} 13. Bc4 {[%clk 0:02:51.1]} 13... e6
{[%clk 0:02:13.5]} 14. Ng5 {[%clk 0:02:42.2]} 14... Rdf8 {[%clk 0:02:01.2]} 15.
Ne4 {[%clk 0:02:37.5]} 15... Be7 {[%clk 0:01:57.1]} 16. c3 {[%clk 0:02:33.6]}
16... Rhg8 {[%clk 0:01:53.3]} 17. g3 {[%clk 0:02:31.8]} 17... Na5 {[%clk
0:01:44.9]} 18. Bf1 {[%clk 0:02:26.8]} 18... Nc6 {[%clk 0:01:35.7]} 19. Bd3
{[%clk 0:02:18.4]} 19... f5 {[%clk 0:01:31.7]} 20. Nd2 {[%clk 0:02:17.3]} 20...
Bf6 {[%clk 0:01:26]} 21. Nb3 {[%clk 0:02:15]} 21... e5 {[%clk 0:01:23.9]} 22.
Bh6 {[%clk 0:02:15]} 22... Rd8 {[%clk 0:01:18.8]} 23. Nc5 {[%clk 0:02:14.6]}
23... e4 {[%clk 0:01:15.4]} 24. Bc4 {[%clk 0:02:13.4]} 24... Ne5 {[%clk
0:01:11.9]} 25. Bxg8 {[%clk 0:02:12.2]} 25... Rxg8 {[%clk 0:01:08.7]} 26. Nxd7
{[%clk 0:02:12.1]} 26... Nxd7 {[%clk 0:01:08.4]} 27. Bf4 {[%clk 0:02:11.3]}
27... Nc5 {[%clk 0:01:06.5]} 28. Kc2 {[%clk 0:02:02.4]} 28... Nd3 {[%clk
0:01:05.4]} 29. Rxd3 {[%clk 0:02:02.4]} 29... exd3+ {[%clk 0:01:05.5]} 30. Kxd3
{[%clk 0:02:02.7]} 30... Rd8+ {[%clk 0:01:03.7]} 31. Kc2 {[%clk 0:02:02.6]}
31... c6 {[%clk 0:00:54.2]} 32. Re6 {[%clk 0:02:01.9]} 32... Rf8 {[%clk
0:00:47.6]} 33. Bh6 {[%clk 0:01:58.9]} 33... Rf7 {[%clk 0:00:47.7]} 34. Re8+
{[%clk 0:01:56.2]} 34... Kd7 {[%clk 0:00:47.4]} 35. Rb8 {[%clk 0:01:54]} 35...
Ke6 {[%clk 0:00:45.9]} 36. Bf4 {[%clk 0:01:53.8]} 36... Kd5 {[%clk 0:00:43.7]}
37. b3 {[%clk 0:01:44]} 37... Ke4 {[%clk 0:00:43.2]} 38. Bd2 {[%clk 0:01:25]}
38... Kf3 {[%clk 0:00:41.6]} 39. Be3 {[%clk 0:01:23.3]} 39... Be5 {[%clk
0:00:28.8]} 40. Re8 {[%clk 0:01:21.9]} 40... Bd6 {[%clk 0:00:25]} 41. Re6 {[%clk
0:01:21.2]} 41... Bc7 {[%clk 0:00:24.9]} 42. Rh6 {[%clk 0:01:17.9]} 42... f4
{[%clk 0:00:23.9]} 43. Bxf4 {[%clk 0:01:13.8]} 43... Bxf4 {[%clk 0:00:24.8]} 44.
gxf4 {[%clk 0:01:13.5]} 44... Kxf4 {[%clk 0:00:25.5]} 45. Rh3 {[%clk 0:01:13.5]}
45... Re7 {[%clk 0:00:22.3]} 46. Kd2 {[%clk 0:01:12.8]} 46... Rd7+ {[%clk
0:00:22.5]} 47. Ke2 {[%clk 0:01:11.8]} 47... Re7+ {[%clk 0:00:23]} 48. Kf1
{[%clk 0:01:11.6]} 48... Rd7 {[%clk 0:00:23]} 49. Re3 {[%clk 0:01:06.8]} 49...
Rd1+ {[%clk 0:00:20.8]} 50. Ke2 {[%clk 0:01:06]} 50... Ra1 {[%clk 0:00:20.5]}
51. a4 {[%clk 0:01:05.1]} 51... Rb1 {[%clk 0:00:20.2]} 52. b4 {[%clk 0:01:03.8]}
52... Ra1 {[%clk 0:00:20.1]} 53. a5 {[%clk 0:01:03.6]} 53... Rh1 {[%clk
0:00:20.4]} 54. Rh3 {[%clk 0:01:02.8]} 54... Rc1 {[%clk 0:00:19.8]} 55. Kd2
{[%clk 0:01:02.5]} 55... Rf1 {[%clk 0:00:19.5]} 56. Rxh7 {[%clk 0:01:02.3]}
56... Rxf2+ {[%clk 0:00:19.6]} 57. Kd3 {[%clk 0:01:02.5]} 57... Rf3+ {[%clk
0:00:19.8]} 58. Kc4 {[%clk 0:01:02.5]} 58... Kg5 {[%clk 0:00:18.2]} 59. Rxb7
{[%clk 0:01:01.4]} 59... Rh3 {[%clk 0:00:18.6]} 60. Rb6 {[%clk 0:01:01.4]} 60...
Rxh2 {[%clk 0:00:17.2]} 61. Rxc6 {[%clk 0:01:01.3]} 61... Kf5 {[%clk 0:00:17.9]}
62. Rxa6 {[%clk 0:01:01.1]} 62... Rh4+ {[%clk 0:00:18.4]} 63. Kb5 {[%clk
0:00:59.9]} 63... Ke5 {[%clk 0:00:19]} 64. Rc6 {[%clk 0:00:59.1]} 64... Kd5
{[%clk 0:00:18.3]} 65. c4+ {[%clk 0:00:59]} 65... Ke5 {[%clk 0:00:18.7]} 66. a6
{[%clk 0:00:58.6]} 66... Rh1 {[%clk 0:00:15.5]} 67. a7 {[%clk 0:00:58]} 67...
Ra1 {[%clk 0:00:15.8]} 68. Ra6 {[%clk 0:00:57.8]} 1-0

[Event "Late-Titled-Tuesday-Blitz-October-10-2023"]
[Site "Chess.com"]
[Date "2023.10.10"]
[Round "10"]
[White "dorpato"]
[Black "lluiss"]
[Result "1-0"]
[WhiteElo "2094"]
[BlackElo "2210"]
[TimeControl "180+1"]
[EndTime "15:50:48 PDT"]
[Termination "dorpato won on time"]

1. e4 {[%clk 0:03:00.9]} 1... c5 {[%clk 0:02:59.2]} 2. Nc3 {[%clk 0:03:00.3]}
2... d6 {[%clk 0:02:58.9]} 3. g3 {[%clk 0:03:00.4]} 3... Nc6 {[%clk 0:02:58.1]}
4. Bg2 {[%clk 0:03:01]} 4... g6 {[%clk 0:02:58.5]} 5. d3 {[%clk 0:03:01.5]} 5...
Bg7 {[%clk 0:02:58.6]} 6. Be3 {[%clk 0:03:01.9]} 6... Rb8 {[%clk 0:02:58.7]} 7.
Qd2 {[%clk 0:03:02.4]} 7... b5 {[%clk 0:02:58.7]} 8. Rb1 {[%clk 0:03:01.8]} 8...
b4 {[%clk 0:02:58.7]} 9. Nce2 {[%clk 0:03:02.4]} 9... Qb6 {[%clk 0:02:54.9]} 10.
h3 {[%clk 0:02:59.9]} 10... e6 {[%clk 0:02:53]} 11. Nf3 {[%clk 0:02:57.9]} 11...
h5 {[%clk 0:02:52.7]} 12. O-O {[%clk 0:02:56.1]} 12... Nge7 {[%clk 0:02:53]} 13.
Bg5 {[%clk 0:02:51.7]} 13... a5 {[%clk 0:02:51.6]} 14. c3 {[%clk 0:02:50.3]}
14... Ba6 {[%clk 0:02:51.5]} 15. c4 {[%clk 0:02:47.7]} 15... a4 {[%clk
0:02:33.7]} 16. Nh2 {[%clk 0:02:39.1]} 16... Nd4 {[%clk 0:02:17.8]} 17. Nxd4
{[%clk 0:02:38.4]} 17... Bxd4 {[%clk 0:02:17]} 18. Nf3 {[%clk 0:02:37.8]} 18...
Bg7 {[%clk 0:02:16.7]} 19. Qf4 {[%clk 0:02:37.1]} 19... f6 {[%clk 0:02:02.1]}
20. Bh4 {[%clk 0:02:15.3]} 20... e5 {[%clk 0:01:45.2]} 21. Qe3 {[%clk
0:02:05.8]} 21... Bh6 {[%clk 0:01:45.2]} 22. Qe2 {[%clk 0:02:00.9]} 22... g5
{[%clk 0:01:45.3]} 23. Nxg5 {[%clk 0:01:57.9]} 23... Bxg5 {[%clk 0:01:42.6]} 24.
Bxg5 {[%clk 0:01:56.5]} 24... fxg5 {[%clk 0:01:42.8]} 25. f4 {[%clk 0:01:56.9]}
25... gxf4 {[%clk 0:00:35.6]} 26. gxf4 {[%clk 0:01:55.3]} 26... Bc8 {[%clk
0:00:26.9]} 27. f5 {[%clk 0:01:52.9]} 27... Rb7 {[%clk 0:00:14.4]} 28. Bf3
{[%clk 0:01:50.5]} 28... Kd8 {[%clk 0:00:11.6]} 29. Bxh5 {[%clk 0:01:48.8]}
29... Ng8 {[%clk 0:00:11.8]} 30. Qg4 {[%clk 0:01:19.8]} 30... Nf6 {[%clk
0:00:09.6]} 31. Qg5 {[%clk 0:01:20.2]} 31... Rf8 {[%clk 0:00:05.5]} 32. Bg6
{[%clk 0:01:15.3]} 32... Qc7 {[%clk 0:00:05.5]} 33. Rf3 {[%clk 0:01:13.6]} 33...
Qe7 {[%clk 0:00:05.7]} 34. Qg2 {[%clk 0:01:11.8]} 34... Rg8 {[%clk 0:00:04.9]}
35. Rg3 {[%clk 0:01:11]} 35... Rg7 {[%clk 0:00:03.5]} 36. Kh2 {[%clk 0:01:09.6]}
36... Bd7 {[%clk 0:00:03.5]} 37. Rg1 {[%clk 0:01:08.5]} 37... Be8 {[%clk
0:00:03.4]} 38. Qf3 {[%clk 0:01:00.7]} 38... Bxg6 {[%clk 0:00:02.9]} 39. Rxg6
{[%clk 0:01:00]} 39... Rxg6 {[%clk 0:00:02.8]} 40. Rxg6 {[%clk 0:00:55.2]} 40...
Qf7 {[%clk 0:00:02.8]} 41. Qe3 {[%clk 0:00:48.7]} 41... Ne8 {[%clk 0:00:02]} 42.
Qh6 {[%clk 0:00:48.1]} 42... Re7 {[%clk 0:00:01.4]} 43. Qg5 {[%clk 0:00:40.4]}
43... Kd7 {[%clk 0:00:01.4]} 44. h4 {[%clk 0:00:26.8]} 44... Kc7 {[%clk
0:00:01.3]} 45. h5 {[%clk 0:00:25.2]} 45... Qh7 {[%clk 0:00:01.1]} 46. f6 {[%clk
0:00:20.6]} 1-0

[Event "Late-Titled-Tuesday-Blitz-October-10-2023"]
[Site "Chess.com"]
[Date "2023.10.10"]
[Round "10"]
[White "Battever"]
[Black "FaustinoOro"]
[Result "1-0"]
[WhiteElo "2554"]
[BlackElo "2842"]
[TimeControl "180+1"]
[EndTime "15:50:49 PDT"]
[Termination "Battever won by resignation"]

1. Nf3 {[%clk 0:02:51.5]} 1... d5 {[%clk 0:02:58.1]} 2. g3 {[%clk 0:02:51.7]}
2... g6 {[%clk 0:02:57.6]} 3. Bg2 {[%clk 0:02:50.1]} 3... Bg7 {[%clk 0:02:57.8]}
4. O-O {[%clk 0:02:50.3]} 4... e5 {[%clk 0:02:57.8]} 5. d3 {[%clk 0:02:51]} 5...
Nc6 {[%clk 0:02:57.6]} 6. Nc3 {[%clk 0:02:49.3]} 6... Nge7 {[%clk 0:02:53.6]} 7.
e4 {[%clk 0:02:49.2]} 7... dxe4 {[%clk 0:02:48.7]} 8. dxe4 {[%clk 0:02:49]} 8...
O-O {[%clk 0:02:42.5]} 9. Qxd8 {[%clk 0:02:43.7]} 9... Nxd8 {[%clk 0:02:35.3]}
10. Bg5 {[%clk 0:02:19]} 10... f6 {[%clk 0:02:32.9]} 11. Be3 {[%clk 0:02:18.1]}
11... Be6 {[%clk 0:02:23.3]} 12. Rfd1 {[%clk 0:02:02.1]} 12... c6 {[%clk
0:02:05]} 13. a4 {[%clk 0:01:49.4]} 13... Nf7 {[%clk 0:02:00.2]} 14. a5 {[%clk
0:01:46.3]} 14... Rfd8 {[%clk 0:01:58.7]} 15. Na4 {[%clk 0:01:32.9]} 15... Nd6
{[%clk 0:01:31.5]} 16. Nc5 {[%clk 0:01:18.3]} 16... Bf7 {[%clk 0:01:26.1]} 17.
b3 {[%clk 0:01:13.4]} 17... h6 {[%clk 0:01:19.9]} 18. Bh3 {[%clk 0:00:46.4]}
18... f5 {[%clk 0:01:17.6]} 19. a6 {[%clk 0:00:18.9]} 19... bxa6 {[%clk
0:01:11.3]} 20. Rxa6 {[%clk 0:00:14.4]} 20... fxe4 {[%clk 0:01:09.5]} 21. Nd2
{[%clk 0:00:10.3]} 21... Ndf5 {[%clk 0:01:05.2]} 22. Ncxe4 {[%clk 0:00:08.8]}
22... Nxe3 {[%clk 0:01:05.4]} 23. fxe3 {[%clk 0:00:09.2]} 23... Nf5 {[%clk
0:01:01.7]} 24. Re1 {[%clk 0:00:08.7]} 24... Bd5 {[%clk 0:00:58.3]} 25. c4
{[%clk 0:00:08]} 25... Bf7 {[%clk 0:00:58]} 26. Rxc6 {[%clk 0:00:07.6]} 26...
Rab8 {[%clk 0:00:58.5]} 27. Re2 {[%clk 0:00:04.5]} 27... Rd3 {[%clk 0:00:56.2]}
28. Nc5 {[%clk 0:00:02.8]} 28... Rxe3 {[%clk 0:00:55.2]} 29. Rxe3 {[%clk
0:00:02.9]} 29... Nxe3 {[%clk 0:00:56.1]} 30. Be6 {[%clk 0:00:02.8]} 30... Bf8
{[%clk 0:00:45.4]} 31. Bxf7+ {[%clk 0:00:02.4]} 31... Kxf7 {[%clk 0:00:46.3]}
32. Rc7+ {[%clk 0:00:02.9]} 32... Kg8 {[%clk 0:00:45.7]} 33. Nde4 {[%clk
0:00:03.5]} 33... Bg7 {[%clk 0:00:32.6]} 34. Rxa7 {[%clk 0:00:02.9]} 34... Nf5
{[%clk 0:00:31.5]} 35. Ne6 {[%clk 0:00:02.9]} 35... Re8 {[%clk 0:00:28.2]} 36.
Nxg7 {[%clk 0:00:03.1]} 36... Nxg7 {[%clk 0:00:28.9]} 37. Nf6+ {[%clk
0:00:03.7]} 37... Kf8 {[%clk 0:00:29.3]} 38. Nxe8 {[%clk 0:00:03.6]} 38... Nxe8
{[%clk 0:00:30.2]} 39. Ra5 {[%clk 0:00:03.9]} 39... e4 {[%clk 0:00:30]} 40. Re5
{[%clk 0:00:04.3]} 40... Nd6 {[%clk 0:00:30.7]} 41. Rd5 {[%clk 0:00:04.5]} 41...
Ke7 {[%clk 0:00:30.5]} 42. g4 {[%clk 0:00:04.2]} 42... Ke6 {[%clk 0:00:30.8]}
43. h4 {[%clk 0:00:04.2]} 43... Nf7 {[%clk 0:00:29.9]} 44. h5 {[%clk 0:00:03.4]}
44... g5 {[%clk 0:00:29]} 45. Kf2 {[%clk 0:00:04]} 45... Ne5 {[%clk 0:00:29.3]}
46. Rxe5+ {[%clk 0:00:04.7]} 46... Kxe5 {[%clk 0:00:30.2]} 47. Ke3 {[%clk
0:00:05.4]} 1-0

[Event "Late-Titled-Tuesday-Blitz-October-10-2023"]
[Site "Chess.com"]
[Date "2023.10.10"]
[Round "10"]
[White "ElenGajger"]
[Black "martinez_95"]
[Result "0-1"]
[WhiteElo "2361"]
[BlackElo "2230"]
[TimeControl "180+1"]
[EndTime "15:50:50 PDT"]
[Termination "martinez_95 won by resignation"]

1. e4 {[%clk 0:02:59.6]} 1... c5 {[%clk 0:02:56.7]} 2. Nc3 {[%clk 0:02:57.7]}
2... d6 {[%clk 0:02:56.8]} 3. f4 {[%clk 0:02:57.3]} 3... g6 {[%clk 0:02:56.1]}
4. Nf3 {[%clk 0:02:57]} 4... Bg7 {[%clk 0:02:56.6]} 5. Bc4 {[%clk 0:02:57.5]}
5... Nc6 {[%clk 0:02:56.8]} 6. O-O {[%clk 0:02:57.8]} 6... Nf6 {[%clk
0:02:57.2]} 7. d3 {[%clk 0:02:58.2]} 7... O-O {[%clk 0:02:57.2]} 8. Qe1 {[%clk
0:02:56.9]} 8... Nd4 {[%clk 0:02:57.4]} 9. Nxd4 {[%clk 0:02:56]} 9... cxd4
{[%clk 0:02:58.3]} 10. Nd5 {[%clk 0:02:56.4]} 10... Nxd5 {[%clk 0:02:53.5]} 11.
Bxd5 {[%clk 0:02:57.3]} 11... e6 {[%clk 0:02:49.4]} 12. Bb3 {[%clk 0:02:57.1]}
12... a5 {[%clk 0:02:48.8]} 13. a4 {[%clk 0:02:56.1]} 13... Bd7 {[%clk
0:02:46.7]} 14. Bd2 {[%clk 0:02:55.2]} 14... Bc6 {[%clk 0:02:33.9]} 15. f5
{[%clk 0:02:54]} 15... exf5 {[%clk 0:02:09.6]} 16. exf5 {[%clk 0:02:54.9]} 16...
d5 {[%clk 0:01:35.2]} 17. Qg3 {[%clk 0:02:43.5]} 17... b5 {[%clk 0:01:31.1]} 18.
axb5 {[%clk 0:02:39.9]} 18... Bxb5 {[%clk 0:01:32]} 19. Qf3 {[%clk 0:02:24.8]}
19... Bc6 {[%clk 0:01:29.2]} 20. Rae1 {[%clk 0:02:15.5]} 20... a4 {[%clk
0:01:25.2]} 21. Ba2 {[%clk 0:02:13.8]} 21... a3 {[%clk 0:01:25.1]} 22. bxa3
{[%clk 0:02:14]} 22... Rxa3 {[%clk 0:01:24.4]} 23. Bb3 {[%clk 0:02:13.7]} 23...
Ra7 {[%clk 0:01:14.5]} 24. Bb4 {[%clk 0:02:09.8]} 24... Re8 {[%clk 0:01:14.4]}
25. Rxe8+ {[%clk 0:01:53.8]} 25... Qxe8 {[%clk 0:01:15.3]} 26. Bxd5 {[%clk
0:01:51.5]} 26... Bxd5 {[%clk 0:01:16.2]} 27. Qxd5 {[%clk 0:01:52]} 27... Qe3+
{[%clk 0:01:16.1]} 28. Kh1 {[%clk 0:01:52.4]} 28... Bf6 {[%clk 0:01:07.3]} 29.
fxg6 {[%clk 0:01:44.9]} 29... hxg6 {[%clk 0:01:04.4]} 30. Re1 {[%clk 0:01:17.3]}
30... Qf2 {[%clk 0:00:44.6]} 31. h3 {[%clk 0:01:00.3]} 31... Bh4 {[%clk
0:00:41.1]} 32. Qc5 {[%clk 0:00:51.9]} 32... Ra8 {[%clk 0:00:36.7]} 33. Rg1
{[%clk 0:00:44.4]} 33... Bg3 {[%clk 0:00:31.6]} 34. Be1 {[%clk 0:00:42.5]} 34...
Qxg1+ {[%clk 0:00:18.3]} 35. Kxg1 {[%clk 0:00:40.1]} 35... Ra1 {[%clk
0:00:18.9]} 36. Qb4 {[%clk 0:00:12.5]} 36... Rxe1+ {[%clk 0:00:17.9]} 37. Qxe1
{[%clk 0:00:12.9]} 37... Bxe1 {[%clk 0:00:18.8]} 38. Kf1 {[%clk 0:00:12.8]}
38... Bc3 {[%clk 0:00:19.7]} 39. Ke2 {[%clk 0:00:13.6]} 39... Kg7 {[%clk
0:00:19.8]} 40. Kf3 {[%clk 0:00:13.9]} 40... f6 {[%clk 0:00:20.7]} 41. Ke4
{[%clk 0:00:14.7]} 41... Kf7 {[%clk 0:00:20.3]} 42. h4 {[%clk 0:00:13]} 42...
Ke6 {[%clk 0:00:20.2]} 43. g4 {[%clk 0:00:13.4]} 43... f5+ {[%clk 0:00:20.5]}
44. gxf5+ {[%clk 0:00:12.9]} 44... gxf5+ {[%clk 0:00:21.4]} 45. Kf3 {[%clk
0:00:11.5]} 45... Kf6 {[%clk 0:00:21.3]} 46. h5 {[%clk 0:00:10.6]} 46... Kg5
{[%clk 0:00:21]} 47. h6 {[%clk 0:00:10.5]} 47... Kxh6 {[%clk 0:00:21.2]} 48. Kf4
{[%clk 0:00:11.4]} 48... Kg6 {[%clk 0:00:21.7]} 0-1

[Event "Late-Titled-Tuesday-Blitz-October-10-2023"]
[Site "Chess.com"]
[Date "2023.10.10"]
[Round "10"]
[White "IlanSchnaider"]
[Black "Denis_Makhnyov"]
[Result "1-0"]
[WhiteElo "2796"]
[BlackElo "2901"]
[TimeControl "180+1"]
[EndTime "15:50:51 PDT"]
[Termination "IlanSchnaider won by resignation"]

1. e4 {[%clk 0:02:59.7]} 1... e5 {[%clk 0:03:00.1]} 2. Nf3 {[%clk 0:02:59.6]}
2... Nc6 {[%clk 0:03:00.7]} 3. d4 {[%clk 0:02:59.9]} 3... exd4 {[%clk
0:03:00.6]} 4. Nxd4 {[%clk 0:03:00.8]} 4... Qf6 {[%clk 0:03:00.7]} 5. Nf3 {[%clk
0:03:00.3]} 5... Bc5 {[%clk 0:02:59]} 6. Nc3 {[%clk 0:03:00.3]} 6... Bb4 {[%clk
0:02:57.2]} 7. Bd2 {[%clk 0:02:59.3]} 7... Bf8 {[%clk 0:02:57.7]} 8. Nd5 {[%clk
0:02:56.5]} 8... Qd8 {[%clk 0:02:57.7]} 9. Bc4 {[%clk 0:02:54.9]} 9... d6 {[%clk
0:02:58.1]} 10. Bc3 {[%clk 0:02:54.1]} 10... Be6 {[%clk 0:02:55.8]} 11. Qd2
{[%clk 0:02:51.5]} 11... Qd7 {[%clk 0:02:53.4]} 12. O-O-O {[%clk 0:02:46.2]}
12... O-O-O {[%clk 0:02:53.1]} 13. Rhe1 {[%clk 0:02:46.3]} 13... h6 {[%clk
0:02:50.2]} 14. Bb3 {[%clk 0:02:44.1]} 14... Nge7 {[%clk 0:02:49]} 15. Kb1
{[%clk 0:02:39.9]} 15... Kb8 {[%clk 0:02:43.3]} 16. Nxe7 {[%clk 0:02:33.9]}
16... Qxe7 {[%clk 0:02:41.5]} 17. Nd4 {[%clk 0:02:31]} 17... Nxd4 {[%clk
0:02:36.6]} 18. Bxd4 {[%clk 0:02:31.3]} 18... Rg8 {[%clk 0:02:28.9]} 19. e5
{[%clk 0:02:26.5]} 19... d5 {[%clk 0:02:27.7]} 20. f4 {[%clk 0:02:01]} 20... g6
{[%clk 0:02:22.3]} 21. Bf2 {[%clk 0:01:59.8]} 21... c5 {[%clk 0:02:20.6]} 22. c3
{[%clk 0:01:56.9]} 22... Qc7 {[%clk 0:02:20.2]} 23. h3 {[%clk 0:01:55.1]} 23...
h5 {[%clk 0:02:20.1]} 24. Bh4 {[%clk 0:01:55.1]} 24... Rd7 {[%clk 0:02:20]} 25.
Ba4 {[%clk 0:01:55.5]} 25... Be7 {[%clk 0:01:57.2]} 26. Bxd7 {[%clk 0:01:40.8]}
26... Bxh4 {[%clk 0:01:56.7]} 27. Bxe6 {[%clk 0:01:41.5]} 27... Bxe1 {[%clk
0:01:56.6]} 28. Qxd5 {[%clk 0:01:37.8]} 28... Bh4 {[%clk 0:01:55.2]} 29. Bd7
{[%clk 0:01:11.9]} 29... Rf8 {[%clk 0:01:54.8]} 30. g4 {[%clk 0:01:08.9]} 30...
hxg4 {[%clk 0:01:54.2]} 31. hxg4 {[%clk 0:01:09.8]} 31... Bg3 {[%clk 0:01:54.7]}
32. Qf3 {[%clk 0:00:59.6]} 32... Bh4 {[%clk 0:01:53.8]} 33. Qd5 {[%clk
0:00:49.1]} 33... Bg3 {[%clk 0:01:53.3]} 34. Qf3 {[%clk 0:00:42]} 34... Bh4
{[%clk 0:01:53.4]} 35. Rd5 {[%clk 0:00:34.5]} 35... Rd8 {[%clk 0:01:50.4]} 36.
Bb5 {[%clk 0:00:34.5]} 36... Rxd5 {[%clk 0:01:04.5]} 37. Qxd5 {[%clk 0:00:35.4]}
37... Qd8 {[%clk 0:01:05.1]} 38. Bc4 {[%clk 0:00:20.8]} 38... Qxd5 {[%clk
0:00:43.4]} 39. Bxd5 {[%clk 0:00:21.7]} 39... f6 {[%clk 0:00:38.7]} 40. Bf7
{[%clk 0:00:19.3]} 40... f5 {[%clk 0:00:17.3]} 41. g5 {[%clk 0:00:15.3]} 41...
Bg3 {[%clk 0:00:16.7]} 42. e6 {[%clk 0:00:13.6]} 42... Kc7 {[%clk 0:00:16.5]}
43. e7 {[%clk 0:00:13.4]} 1-0